bitfinex-derivatives/quotes_BNBF0:USTF0_20250112
["timestamp","ask_amount","ask_price","bid_price","bid_amount"]
[1736689866954,0.26507066,694.0,692.24,0.28891713]
[1736689867657,0.28818859,693.99,692.24,0.28891713]
[1736689867853,0.26507066,693.98,692.24,0.28891713]
[1736689868050,0.28819689,693.97,692.24,0.28891713]
[1736689868255,0.26507066,693.96,692.24,0.28891713]
[1736689868456,0.5532717,693.96,692.24,0.28891713]
[1736689868658,0.26507066,693.95,692.24,0.28891713]
[1736689869457,0.26507704,693.94,692.24,0.28891713]
[1736689869652,0.26507704,693.95,692.24,0.28891713]
[1736689869857,0.26507704,693.94,692.24,0.28891713]
[1736689870058,0.26507704,693.93,692.24,0.28891713]
[1736689870258,0.26507704,693.92,692.24,0.28891713]
[1736689870454,0.26507704,693.91,692.24,0.28891713]
[1736689870661,0.26507704,693.9,692.24,0.28891713]
[1736689870960,0.26507704,693.89,692.24,0.28891713]
[1736689871161,0.26507704,693.88,692.24,0.28891713]
[1736689871359,0.26507704,693.87,692.24,0.28891713]
[1736689871661,0.26507704,693.86,692.24,0.28891713]
[1736689871961,1.50625442,693.95,692.24,0.28891713]
[1736689872152,0.26508295,693.94,692.24,0.28891713]
[1736689872357,0.5532963,693.93,692.24,0.28891713]
[1736689872660,0.2882135,693.93,692.24,0.28891713]
[1736689874160,0.26511117,693.92,692.24,0.28891713]
[1736689874361,0.28822181,693.91,692.24,0.28891713]
[1736689874561,0.26511117,693.9,692.24,0.28891713]
[1736689875262,0.26512071,693.89,692.24,0.28891713]
[1736689875561,0.26512071,693.88,692.24,0.28891713]
[1736689875761,0.28822181,693.91,692.24,0.28891713]
[1736689875960,0.26511455,693.9,692.24,0.28891713]
[1736689876557,0.28823012,693.89,692.24,0.28891713]
[1736689876862,0.26511131,693.88,692.24,0.28891713]
[1736689877258,0.28823012,693.89,692.24,0.28891713]
[1736689877460,0.2651193,693.88,692.24,0.28891713]
[1736689877658,0.28823012,693.89,692.24,0.28891713]
[1736689877964,0.26511887,693.88,692.24,0.28891713]
[1736689878262,0.28823012,693.89,692.24,0.28891713]
[1736689878463,0.28823843,693.87,692.24,0.28891713]
[1736689880662,0.26512066,693.86,692.24,0.28891713]
[1736689881559,0.28824673,693.85,692.24,0.28891713]
[1736689881763,0.26512066,693.84,692.24,0.28891713]
[1736689882765,0.55337155,693.84,692.24,0.28891713]
[1736689882965,0.26512066,693.83,692.24,0.28891713]
[1736689883263,0.2651168,693.82,692.24,0.28891713]
[1736689883464,0.2651168,693.81,692.24,0.28891713]
[1736689883667,0.2651168,693.8,692.24,0.28891713]
[1736689883867,0.2651168,693.79,692.24,0.28891713]
[1736689884068,0.2651168,693.78,692.24,0.28891713]
[1736689884262,0.2651168,693.77,692.24,0.28891713]
[1736689884466,0.28825089,693.84,692.24,0.28891713]
[1736689884968,0.26511268,693.83,692.24,0.28891713]
[1736689885869,0.26511939,693.82,692.24,0.28891713]
[1736689886068,0.28825089,693.84,692.24,0.28891713]
[1736689886268,0.26511961,693.83,692.24,0.28891713]
[1736689886670,0.26511902,693.82,692.24,0.28891713]
[1736689886867,0.28825089,693.84,692.24,0.28891713]
[1736689887064,0.26511885,693.83,692.24,0.28891713]
[1736689887665,0.28825089,693.84,692.24,0.28891713]
[1736689891568,0.26513374,693.83,692.24,0.28891713]
[1736689891769,0.2882592,693.82,692.24,0.28891713]
[1736689891967,0.26513374,693.81,692.24,0.28891713]
[1736689892172,0.28826751,693.8,692.24,0.28891713]
[1736689892372,0.26513374,693.79,692.24,0.28891713]
[1736689892569,1.77194252,693.79,692.24,0.28891713]
[1736689892773,0.55340956,693.78,692.24,0.28891713]
[1736689892974,0.55341371,693.77,692.24,0.28891713]
[1736689893179,0.55341787,693.76,692.24,0.28891713]
[1736689893475,0.55342202,693.75,692.24,0.28891713]
[1736689893674,0.55342618,693.74,692.24,0.28891713]
[1736689893870,0.55343033,693.73,692.24,0.28891713]
[1736689894073,0.5534605,693.72,692.24,0.28891713]
[1736689894269,0.26515975,693.71,692.24,0.28891713]
[1736689894475,0.28830906,693.7,692.24,0.28891713]
[1736689894668,0.26515975,693.69,692.24,0.28891713]
[1736689894976,0.26518133,693.68,692.24,0.28891713]
[1736689895174,0.26518133,693.67,692.24,0.28891713]
[1736689895369,0.28830906,693.7,692.24,0.28891713]
[1736689895370,0.26518133,693.66,692.24,0.28891713]
[1736689895574,0.26518133,693.65,692.24,0.28891713]
[1736689895771,0.26518133,693.64,692.24,0.28891713]
[1736689895975,0.26518133,693.63,692.24,0.28891713]
[1736689896175,0.26518133,693.62,692.24,0.28891713]
[1736689896372,0.26518133,693.61,692.24,0.28891713]
[1736689896574,0.26518133,693.6,692.24,0.28891713]
[1736689896769,0.28830906,693.7,692.24,0.28891713]
[1736689896971,0.26517729,693.69,692.24,0.28891713]
[1736689899377,0.28830906,693.7,692.24,0.28891713]
[1736689899574,0.26518415,693.69,692.24,0.28891713]
[1736689900279,0.28831737,693.68,692.24,0.28891713]
[1736689900576,0.26518415,693.67,692.24,0.28891713]
[1736689900878,0.28832569,693.66,692.24,0.28891713]
[1736689901277,0.26518792,693.65,692.24,0.28891713]
[1736689901478,0.288334,693.64,692.24,0.28891713]
[1736689901679,0.26518792,693.63,692.24,0.28891713]
[1736689901879,0.28834232,693.62,692.24,0.28891713]
[1736689902080,0.26518792,693.61,692.24,0.28891713]
[1736689903075,0.55354521,693.6,692.24,0.28891713]
[1736689903272,0.26519458,693.59,692.24,0.28891713]
[1736689905080,0.26518413,693.58,692.24,0.28891713]
[1736689905280,0.26518413,693.57,692.24,0.28891713]
[1736689905483,0.26518413,693.56,692.24,0.28891713]
[1736689905677,0.26518413,693.55,692.24,0.28891713]
[1736689905879,0.28835063,693.6,692.24,0.28891713]
[1736689906184,0.26518581,693.59,692.24,0.28891713]
[1736689907783,0.26518603,693.58,692.24,0.28891713]
[1736689907979,0.26518603,693.57,692.24,0.28891713]
[1736689908185,0.26518603,693.56,692.24,0.28891713]
[1736689908385,0.26518603,693.55,692.24,0.28891713]
[1736689908578,0.26518603,693.54,692.24,0.28891713]
[1736689908784,0.26518603,693.53,692.24,0.28891713]
[1736689908981,0.26518603,693.52,692.24,0.28891713]
[1736689909185,0.26518603,693.51,692.24,0.28891713]
[1736689909486,0.26518603,693.5,692.24,0.28891713]
[1736689909686,0.26518603,693.49,692.24,0.28891713]
[1736689909887,0.26518603,693.48,692.24,0.28891713]
[1736689910187,0.28835063,693.6,692.24,0.28891713]
[1736689910388,0.26518661,693.59,692.24,0.28891713]
[1736689910588,0.5535414,693.59,692.24,0.28891713]
[1736689910786,0.26518661,693.58,692.24,0.28891713]
[1736689911187,0.26518641,693.57,692.24,0.28891713]
[1736689911386,0.26518641,693.56,692.24,0.28891713]
[1736689911587,0.26518641,693.55,692.24,0.28891713]
[1736689911782,0.26518641,693.54,692.24,0.28891713]
[1736689911987,0.26518641,693.53,692.24,0.28891713]
[1736689912287,0.26518641,693.52,692.24,0.28891713]
[1736689912587,0.26518641,693.51,692.24,0.28891713]
[1736689912787,0.26518641,693.5,692.24,0.28891713]
[1736689912983,0.26518641,693.49,692.24,0.28891713]
[1736689913284,0.26519498,693.48,692.24,0.28891713]
[1736689913485,0.26519498,693.47,692.24,0.28891713]
[1736689913686,0.26519498,693.46,692.24,0.28891713]
[1736689913888,0.28835479,693.59,692.24,0.28891713]
[1736689914083,0.26519368,693.58,692.24,0.28891713]
[1736689915990,0.26519083,693.57,692.24,0.28891713]
[1736689916291,0.26519083,693.56,692.24,0.28891713]
[1736689916490,0.26519083,693.55,692.24,0.28891713]
[1736689916691,0.26519083,693.54,692.24,0.28891713]
[1736689916884,0.26519083,693.53,692.24,0.28891713]
[1736689917086,0.26519083,693.52,692.24,0.28891713]
[1736689917288,0.26519083,693.51,692.24,0.28891713]
[1736689917491,0.26519083,693.5,692.24,0.28891713]
[1736689917688,0.26519083,693.49,692.24,0.28891713]
[1736689917992,0.26519083,693.48,692.24,0.28891713]
[1736689918187,0.26519083,693.47,692.24,0.28891713]
[1736689918392,0.28835479,693.59,692.24,0.28891713]
[1736689918592,0.26519171,693.58,692.24,0.28891713]
[1736689920899,0.28835479,693.59,692.24,0.28891713]
[1736689921198,0.26519451,693.58,692.24,0.28891713]
[1736689923301,0.26518975,693.57,692.24,0.28891713]
[1736689923496,0.26518975,693.56,692.24,0.28891713]
[1736689923699,0.26518975,693.55,692.24,0.28891713]
[1736689923898,0.26518975,693.54,692.24,0.28891713]
[1736689924095,0.26518975,693.53,692.24,0.28891713]
[1736689924299,0.26518975,693.52,692.24,0.28891713]
[1736689924499,0.26518975,693.51,692.24,0.28891713]
[1736689924799,0.26518975,693.5,692.24,0.28891713]
[1736689924996,0.26518975,693.49,692.24,0.28891713]
[1736689925295,1.36781389,693.59,692.24,0.28891713]
[1736689925496,0.26518095,693.58,692.24,0.28891713]
[1736689925898,1.36781389,693.59,692.24,0.28891713]
[1736689926102,0.26517068,693.58,692.24,0.28891713]
[1736689926699,1.36781389,693.59,692.24,0.28891713]
[1736689926903,0.26517413,693.58,692.24,0.28891713]
[1736689927703,1.0794591,693.57,692.24,0.28891713]
[1736689927898,0.26517413,693.56,692.24,0.28891713]
[1736689928806,0.26517042,693.55,692.24,0.28891713]
[1736689929002,0.26517042,693.54,692.24,0.28891713]
[1736689929208,1.0794591,693.55,692.24,0.28891713]
[1736689929608,1.0794591,693.57,692.24,0.28891713]
[1736689930808,0.28835479,693.59,692.28,1.29383983]
[1736689931803,0.28835479,693.59,692.29,0.28889627]
[1736689961940,1.36711034,693.59,692.29,0.28889627]
[1736689963734,0.28835479,693.59,692.29,0.28889627]
[1736689968641,1.36711034,693.59,692.29,0.28889627]
[1736689969541,1.07875555,693.58,692.29,0.28889627]
[1736689971235,1.07875555,693.56,692.29,0.28889627]
[1736689972243,1.07875555,693.54,692.29,0.28889627]
[1736689973239,1.07875555,693.51,692.29,0.28889627]
[1736689973841,1.07875555,693.48,692.29,0.28889627]
[1736689974744,1.07875555,693.47,692.29,0.28889627]
[1736689975841,1.07875555,693.51,692.29,0.28889627]
[1736689978046,1.07875555,693.55,692.29,0.28889627]
[1736689979146,1.07875555,693.52,692.29,0.28889627]
[1736689980245,1.07875555,693.51,692.29,0.28889627]
[1736689981150,1.07875555,693.49,692.29,0.28889627]
[1736689982350,1.07875555,693.5,692.29,0.28889627]
[1736689985947,0.28835479,693.59,692.29,0.28889627]
[1736689985948,1.07875555,693.49,692.29,0.28889627]
[1736689987158,1.07875555,693.51,692.29,0.28889627]
[1736689987459,0.26520026,693.5,692.29,0.28889627]
[1736689987956,1.07875555,693.46,692.29,0.28889627]
[1736689988753,1.07875555,693.44,692.29,0.28889627]
[1736689988959,0.26520349,693.43,692.29,0.28889627]
[1736689989558,1.07875555,693.41,692.29,0.28889627]
[1736689990553,1.07875555,693.42,692.29,0.28889627]
[1736689991555,1.07875555,693.43,692.29,0.28889627]
[1736689992657,1.07875555,693.44,692.29,0.28889627]
[1736689993356,1.07875555,693.5,692.29,0.28889627]
[1736689993559,0.26518091,693.49,692.29,0.28889627]
[1736689994464,1.34393646,693.49,692.29,0.28889627]
[1736689994661,1.07875555,693.49,692.29,0.28889627]
[1736689995662,0.26517979,693.48,692.29,0.28889627]
[1736689996061,1.07875555,693.49,692.29,0.28889627]
[1736689996363,0.26519531,693.48,692.29,0.28889627]
[1736689996762,1.07875555,693.45,692.29,0.28889627]
[1736689997466,1.07875555,693.43,692.29,0.28889627]
[1736689997859,0.26522139,693.42,692.29,0.28889627]
[1736689998162,1.07875555,693.41,692.29,0.28889627]
[1736690002167,1.07875555,693.42,692.29,0.28889627]
[1736690003663,0.26525157,693.41,692.29,0.28889627]
[1736690004263,1.07875555,693.42,692.29,0.28889627]
[1736690004569,1.07875555,693.39,692.29,0.28889627]
[1736690006269,1.07875555,693.38,692.29,0.28889627]
[1736690007368,1.50719491,693.55,692.29,0.28889627]
[1736690007369,1.07875555,693.39,692.29,0.28889627]
[1736690007766,0.26525574,693.38,692.29,0.28889627]
[1736690008367,1.07875555,693.36,692.29,0.28889627]
[1736690010468,1.34401292,693.35,692.29,0.28889627]
[1736690010669,1.07875555,693.35,692.29,0.28889627]
[1736690011171,1.07875555,693.33,692.29,0.28889627]
[1736690011873,1.07875555,693.35,692.29,0.28889627]
[1736690012670,1.07875555,693.36,692.29,0.28889627]
[1736690013674,1.07875555,693.51,692.29,0.28889627]
[1736690014777,1.07875555,693.52,692.29,0.28889627]
[1736690017676,1.07875555,693.5,692.29,0.28889627]
[1736690018272,1.07875555,693.48,692.29,0.28889627]
[1736690021470,1.07875555,693.46,692.29,0.28889627]
[1736690022285,0.26524516,693.45,692.29,0.28889627]
[1736690022583,1.07875555,693.46,692.29,0.28889627]
[1736690023382,1.07875555,693.4,692.29,0.28889627]
[1736690024180,1.07875555,693.37,692.29,0.28889627]
[1736690029182,0.28835479,693.59,692.29,0.28889627]
[1736690029183,1.07875555,693.31,692.29,0.28889627]
[1736690031486,1.07875555,693.3,692.29,0.28889627]
[1736690032182,1.07875555,693.27,692.29,0.28889627]
[1736690032888,0.89134592,693.58,692.29,0.28889627]
[1736690032889,1.07875555,693.23,692.29,0.28889627]
[1736690034786,1.07875555,693.25,692.29,0.28889627]
[1736690035786,1.07875555,693.24,692.29,0.28889627]
[1736690036582,1.07875555,693.23,692.29,0.28889627]
[1736690040393,1.07875555,693.51,692.29,0.28889627]
[1736690041188,1.07875555,693.41,692.29,0.28889627]
[1736690042695,1.07875555,693.48,692.29,0.28889627]
[1736690043192,1.07875555,693.5,692.29,0.28889627]
[1736690044091,1.07875555,693.51,692.29,0.28889627]
[1736690045388,1.07875555,693.52,692.29,0.28889627]
[1736690045591,0.26517565,693.51,692.29,0.28889627]
[1736690045994,1.07875555,693.52,692.29,0.28889627]
[1736690046195,0.26517811,693.51,692.29,0.28889627]
[1736690047594,1.07875555,693.49,692.29,0.28889627]
[1736690047896,0.26518178,693.48,692.29,0.28889627]
[1736690048097,1.07875555,693.49,692.29,0.28889627]
[1736690048598,0.28835479,693.59,692.29,0.28889627]
[1736690048599,1.07875555,693.48,692.29,0.28889627]
[1736690049298,0.26518853,693.47,692.29,0.28889627]
[1736690049800,0.26518853,693.46,692.29,0.28889627]
[1736690050099,1.07875555,693.49,692.29,0.28889627]
[1736690050399,1.34394825,693.48,692.29,0.28889627]
[1736690050600,0.2651927,693.47,692.29,0.28889627]
[1736690051198,1.07875555,693.46,692.29,0.28889627]
[1736690051394,0.2651927,693.45,692.29,0.28889627]
[1736690052699,1.07875555,693.46,692.29,0.28889627]
[1736690053097,1.07875555,693.47,692.29,0.28889627]
[1736690053901,0.28835479,693.59,692.29,0.28889627]
[1736690062608,0.26518741,693.58,692.29,0.28889627]
[1736690063611,1.07875555,693.52,692.29,0.28889627]
[1736690064407,0.26518679,693.51,692.29,0.28889627]
[1736690064607,1.07875555,693.49,692.29,0.28889627]
[1736690065609,1.07875555,693.47,692.29,0.28889627]
[1736690066518,1.36711034,693.59,692.29,0.28889627]
[1736690067519,1.07875555,693.58,692.29,0.28889627]
[1736690067720,1.36711449,693.58,692.29,0.28889627]
[1736690068622,1.07875555,693.57,692.29,0.28889627]
[1736690069621,1.07875555,693.56,692.29,0.28889627]
[1736690070617,1.07875555,693.54,692.29,0.28889627]
[1736690071522,1.07875555,693.53,692.29,0.28889627]
[1736690072321,0.28835894,693.58,692.29,0.28889627]
[1736690072322,1.07875555,693.51,692.29,0.28889627]
[1736690072921,0.28835894,693.58,692.29,0.28889627]
[1736690072922,1.07875555,693.49,692.29,0.28889627]
[1736690074229,1.07875555,693.46,692.29,0.28889627]
[1736690075029,1.07875555,693.45,692.29,0.28889627]
[1736690076124,1.07875555,693.46,692.29,0.28889627]
[1736690076931,1.07875555,693.32,692.29,0.28889627]
[1736690078433,1.07875555,693.35,692.29,0.28889627]
[1736690080330,1.07875555,693.3,692.29,0.28889627]
[1736690081029,1.97211621,693.57,692.29,0.28889627]
[1736690081030,1.07875555,693.26,692.29,0.28889627]
[1736690082334,1.07875555,693.4,692.29,0.28889627]
[1736690083731,1.07875555,693.43,692.29,0.28889627]
[1736690084525,1.07875555,693.41,692.29,0.28889627]
[1736690085631,1.50705893,693.54,692.29,0.28889627]
[1736690085632,1.07875555,693.42,692.29,0.28889627]
[1736690086226,1.50705893,693.54,692.29,0.28889627]
[1736690086227,1.07875555,693.41,692.29,0.28889627]
[1736690087029,1.07875555,693.39,692.29,0.28889627]
[1736690087831,1.07875555,693.42,692.29,0.28889627]
[1736690089441,1.07875555,693.41,692.29,0.28889627]
[1736690090037,1.07875555,693.42,692.29,0.28889627]
[1736690091131,1.07875555,693.43,692.29,0.28889627]
[1736690093136,0.26525255,693.42,692.29,0.28889627]
[1736690093738,1.07875555,693.39,692.29,0.28889627]
[1736690094731,1.07875555,693.38,692.29,0.28889627]
[1736690096037,1.07875555,693.37,692.29,0.28889627]
[1736690096931,1.07875555,693.46,692.29,0.28889627]
[1736690097938,1.07875555,693.44,692.29,0.28889627]
[1736690100939,1.07875555,693.45,692.29,0.28889627]
[1736690102139,1.07875555,693.47,692.29,0.28889627]
[1736690102941,1.07875555,693.46,692.29,0.28889627]
[1736690104243,1.07875555,693.47,692.29,0.28889627]
[1736690104942,1.07875555,693.46,692.29,0.28889627]
[1736690105446,0.2652342,693.45,692.29,0.28889627]
[1736690106847,1.07875555,693.39,692.29,0.28889627]
[1736690107547,1.07875555,693.38,692.29,0.28889627]
[1736690109544,1.07875555,693.37,692.29,0.28889627]
[1736690110546,1.07875555,693.44,692.29,0.28889627]
[1736690111250,1.07875555,693.45,692.29,0.28889627]
[1736690112151,1.07875555,693.49,692.29,0.28889627]
[1736690112948,0.28835894,693.58,692.29,0.28889627]
[1736690112949,1.07875555,693.46,692.29,0.28889627]
[1736690113852,1.07875555,693.53,692.29,0.28889627]
[1736690115153,1.07875555,693.55,692.29,0.28889627]
[1736690116655,0.28835894,693.58,692.29,0.28889627]
[1736690116656,1.07875555,693.56,692.29,0.28889627]
[1736690117557,0.28835894,693.58,692.29,0.28889627]
[1736690146380,1.07875555,693.57,692.29,0.28889627]
[1736690146582,0.28836726,693.56,692.29,0.28889627]
[1736690147386,1.07875555,693.49,692.29,0.28889627]
[1736690148385,0.28836726,693.56,692.29,0.28889627]
[1736690148386,1.07875555,693.51,692.29,0.28889627]
[1736690149085,1.3671436,693.51,692.29,0.28889627]
[1736690149286,1.07875555,693.5,692.29,0.28889627]
[1736690150086,0.28838805,693.51,692.29,0.28889627]
[1736690150087,1.3671436,693.51,692.29,0.28889627]
[1736690151881,0.28838805,693.51,692.29,0.28889627]
[1736690158792,0.26521703,693.5,692.29,0.28889627]
[1736690158998,0.55360924,693.5,692.29,0.28889627]
[1736690159298,0.28839221,693.5,692.29,0.28889627]
[1736690159502,0.26521979,693.49,692.29,0.28889627]
[1736690159799,1.07875555,693.46,692.29,0.28889627]
[1736690159997,0.26521979,693.45,692.29,0.28889627]
[1736690160897,1.34397534,693.45,692.29,0.28889627]
[1736690161098,0.26521979,693.44,692.29,0.28889627]
[1736690161695,1.07875555,693.39,692.29,0.28889627]
[1736690161891,0.26521979,693.38,692.29,0.28889627]
[1736690162092,1.07875555,693.39,692.29,0.28889627]
[1736690162297,0.26522319,693.38,692.29,0.28889627]
[1736690162498,1.07875555,693.37,692.29,0.28889627]
[1736690167002,1.07875555,693.38,692.29,0.28889627]
[1736690168102,1.07875555,693.37,692.29,0.28889627]
[1736690168703,1.07875555,693.36,692.29,0.28889627]
[1736690169402,0.28839221,693.5,692.29,0.28889627]
[1736690169403,1.07875555,693.39,692.29,0.28889627]
[1736690169804,0.26522056,693.38,692.29,0.28889627]
[1736690170099,1.07875555,693.39,692.29,0.28889627]
[1736690170304,1.07875555,693.38,692.29,0.28889627]
[1736690171805,1.07875555,693.36,692.29,0.28889627]
[1736690172906,1.07875555,693.35,692.29,0.28889627]
[1736690174703,1.07875555,693.3,692.29,0.28889627]
[1736690175707,1.07875555,693.29,692.29,0.28889627]
[1736690176405,1.07875555,693.27,692.29,0.28889627]
[1736690178407,1.07875555,693.29,692.29,0.28889627]
[1736690179608,0.28839221,693.5,692.29,0.28889627]
[1736690179609,1.07875555,693.27,692.29,0.28889627]
[1736690180507,1.07875555,693.26,692.29,0.28889627]
[1736690181205,1.07875555,693.24,692.29,0.28889627]
[1736690182210,1.07875555,693.22,692.29,0.28889627]
[1736690183611,1.07875555,693.2,692.29,0.28889627]
[1736690184811,1.07875555,693.27,692.29,0.28889627]
[1736690185617,1.07875555,693.3,692.29,0.28889627]
[1736690186715,1.07875555,693.28,692.29,0.28889627]
[1736690187417,1.07875555,693.29,692.29,0.28889627]
[1736690187610,1.07875555,693.29,691.69,1.29383983]
[1736690187816,1.07875555,693.29,691.71,0.28913851]
[1736690188217,1.07875555,693.3,691.71,0.28913851]
[1736690189114,1.07875555,693.32,691.71,0.28913851]
[1736690189316,0.28847124,693.31,691.71,0.28913851]
[1736690195623,0.26528376,693.3,691.71,0.28913851]
[1736690196022,0.55375916,693.3,691.71,0.28913851]
[1736690196323,0.26528376,693.29,691.71,0.28913851]
[1736690196918,0.2884754,693.3,691.71,0.28913851]
[1736690197122,1.07875555,693.22,691.85,1.29383983]
[1736690197325,1.07875555,693.22,691.86,0.28907582]
[1736690199426,0.26528957,693.21,691.86,0.28907582]
[1736690199622,1.07875555,693.22,691.86,0.28907582]
[1736690200021,1.07875555,693.2,691.86,0.28907582]
[1736690200828,1.07875555,693.2,691.86,3.28512084]
[1736690201027,1.07875555,693.21,691.87,2.69268376]
[1736690202424,1.07875555,693.22,691.88,2.99604502]
[1736690202625,1.07875555,693.22,691.89,2.69268376]
[1736690202829,1.07875555,693.22,691.88,2.99604502]
[1736690203223,1.07875555,693.22,691.88,3.28511248]
[1736690203428,1.07875555,693.22,691.89,0.28906329]
[1736690204028,0.2884754,693.3,691.89,0.28906329]
[1736690207828,0.2884546,693.35,691.89,0.28906329]
[1736690212837,0.26528584,693.34,691.89,0.28906329]
[1736690213037,0.28846292,693.33,691.89,0.28906329]
[1736690213238,0.26528584,693.32,691.89,0.28906329]
[1736690213438,1.07875555,693.24,691.89,0.28906329]
[1736690214135,1.79617284,693.23,691.89,0.28906329]
[1736690214339,0.28850869,693.22,691.89,0.28906329]
[1736690215342,1.07875555,693.21,691.89,0.28906329]
[1736690215543,0.28851702,693.2,691.89,0.28906329]
[1736690245962,1.07875555,693.16,691.89,0.28906329]
[1736690246958,1.07875555,693.15,691.89,0.28906329]
[1736690247961,1.07875555,693.13,691.89,0.28906329]
[1736690248964,1.07875555,693.09,691.89,0.28906329]
[1736690250267,1.07875555,693.06,691.89,0.28906329]
[1736690251169,1.07875555,692.97,691.89,0.28906329]
[1736690251967,1.07875555,692.94,691.89,0.28906329]
[1736690252773,1.07875555,692.95,691.89,0.28906329]
[1736690256875,1.07875555,692.93,691.89,0.28906329]
[1736690257574,1.07875555,692.92,691.89,0.28906329]
[1736690258375,1.07875555,693.06,691.89,0.28906329]
[1736690258867,1.07875555,693.1,691.89,0.28906329]
[1736690259675,1.07875555,693.11,691.89,0.28906329]
[1736690260671,1.07875555,693.1,691.89,0.28906329]
[1736690261576,1.07875555,693.12,691.89,0.28906329]
[1736690263578,1.07875555,693.11,691.89,0.28906329]
[1736690265878,1.07875555,693.08,691.89,0.28906329]
[1736690267880,1.07875555,693.06,691.89,0.28906329]
[1736690269182,1.07875555,692.93,691.89,0.28906329]
[1736690270280,1.07875555,692.94,691.89,0.28906329]
[1736690273181,1.07875555,692.92,691.89,0.28906329]
[1736690274786,1.07875555,692.93,691.89,0.28906329]
[1736690276387,1.07875555,692.92,691.89,0.28906329]
[1736690277187,1.07875555,692.93,691.89,0.28906329]
[1736690280191,1.07875555,692.92,691.89,0.28906329]
[1736690280786,1.07875555,692.95,691.89,0.28906329]
[1736690282589,1.07875555,692.96,691.89,0.28906329]
[1736690283700,1.07875555,692.98,691.89,0.28906329]
[1736690287594,1.0794591,693.16,691.89,0.28906329]
[1736690287595,1.07875555,693.15,691.89,0.28906329]
[1736690288790,1.07875555,693.07,691.89,0.28906329]
[1736690293096,1.07875555,693.12,691.89,0.28906329]
[1736690293793,0.28855448,693.11,691.89,0.28906329]
[1736690293992,1.36731003,693.11,691.89,0.28906329]
[1736690294998,1.07875555,693.05,691.89,0.28906329]
[1736690297199,1.07875555,693.06,691.89,0.28906329]
[1736690297997,1.07875555,693.07,691.89,0.28906329]
[1736690299000,0.28855448,693.11,691.89,0.28906329]
[1736690299001,1.07875555,693.08,691.89,0.28906329]
[1736690299609,0.2653614,693.07,691.89,0.28906329]
[1736690299901,1.07875555,693.08,691.89,0.28906329]
[1736690300107,0.26535906,693.07,691.89,0.28906329]
[1736690300707,0.265361,693.06,691.89,0.28906329]
[1736690300902,1.07875555,692.93,691.89,0.28906329]
[1736690302102,1.07875555,692.94,691.89,0.28906329]
[1736690304407,1.07875555,692.93,691.89,0.28906329]
[1736690309012,1.07875555,693.03,691.89,0.28906329]
[1736690310910,1.07875555,693.02,691.89,0.28906329]
[1736690311712,0.28855448,693.11,691.89,0.28906329]
[1736690311713,1.07875555,693.05,691.89,0.28906329]
[1736690312812,0.28858363,693.04,691.89,0.28906329]
[1736690313111,1.79663851,693.04,691.89,0.28906329]
[1736690313511,1.07875555,693.02,691.89,0.28906329]
[1736690313711,1.3673475,693.02,691.89,0.28906329]
[1736690314612,1.07875555,693.01,691.89,0.28906329]
[1736690316408,0.28859195,693.02,691.89,0.28906329]
[1736690317613,1.3673475,693.02,691.89,0.28906329]
[1736690317814,0.2653851,693.01,691.89,0.28906329]
[1736690318614,1.07875555,692.89,691.89,0.28906329]
[1736690319314,1.07875555,692.88,691.89,0.28906329]
[1736690320318,1.07875555,692.91,691.89,0.28906329]
[1736690321318,1.07875555,692.88,691.89,0.28906329]
[1736690322416,0.28859195,693.02,691.89,0.28906329]
[1736690322417,1.07875555,693.01,691.89,0.28906329]
[1736690323317,1.07875555,692.99,691.89,0.28906329]
[1736690324012,1.07875555,692.98,691.89,0.28906329]
[1736690324713,1.36735167,693.01,691.89,0.28906329]
[1736690328913,1.07875555,693.0,691.89,0.28906329]
[1736690330918,1.07875555,692.99,691.89,0.28906329]
[1736690332219,1.07875555,693.0,691.89,0.28906329]
[1736690333020,1.07875555,692.91,691.89,0.28906329]
[1736690334522,1.07875555,692.92,691.89,0.28906329]
[1736690335429,1.07875555,692.86,691.89,0.28906329]
[1736690336328,1.07875555,692.98,691.89,0.28906329]
[1736690337528,1.07875555,692.99,691.89,0.28906329]
[1736690338529,1.07875555,692.98,691.89,0.28906329]
[1736690341633,1.07875555,692.95,691.89,0.28906329]
[1736690346730,1.07875555,692.82,691.89,0.28906329]
[1736690347431,1.07875555,692.81,691.89,0.28906329]
[1736690348238,0.28859612,693.01,691.89,0.28906329]
[1736690358141,1.36735167,693.01,691.89,0.28906329]
[1736690359240,1.07875555,692.98,691.89,0.28906329]
[1736690360340,1.07875555,692.97,691.89,0.28906329]
[1736690362240,1.07875555,692.95,691.89,0.28906329]
[1736690363242,1.07875555,692.88,691.89,0.28906329]
[1736690364240,1.07875555,692.84,691.89,0.28906329]
[1736690365442,1.07875555,692.83,691.89,0.28906329]
[1736690367243,1.07875555,692.82,691.89,0.28906329]
[1736690368135,1.07875555,692.83,691.89,0.28906329]
[1736690369140,1.07875555,692.93,691.89,0.28906329]
[1736690371438,1.07875555,692.92,691.89,0.28906329]
[1736690372344,1.07875555,692.95,691.89,0.28906329]
[1736690373740,1.07875555,692.96,691.89,0.28906329]
[1736690374847,1.07875555,692.95,691.89,0.28906329]
[1736690375747,1.07875555,692.94,691.89,0.28906329]
[1736690377751,1.07875555,692.96,691.89,0.28906329]
[1736690378548,1.07875555,692.88,691.89,0.28906329]
[1736690379552,1.07875555,692.86,691.89,0.28906329]